[Event "CCT Final-RR 2024"]
[Site "Oslo"]
[Date "2024.12.17"]
[Round "1"]
[White "Carlsen, Magnus"]
[Black "Keymer, Vincent"]
[Result "1-0"]
[ECO "A06"]
[WhiteElo "2831"]
[BlackElo "2733"]
[Annotator "TA"]
[PlyCount "130"]
[EventDate "2024.12.11"]
[EventType "tourn"]
[EventCountry "NOR"]
[SourceTitle "playchess.com"]
[Source "ChessBase"]
[SourceQuality "1"]
[TimeControl "600+2"]

{[%evp 9,130,0,13,0,-2,-13,0,-29,0,-23,-4,-24,-34,-56,-41,-45,-18,-31,-38,-35,-33,-35,-29,-33,-25,-54,-33,-39,-25,-45,0,-21,-16,-24,-22,-25,-19,-36,0,0,0,0,0,0,0,0,0,0,0,0,0,0,6,0,0,0,0,0,0,0,0,0,0,0,0,0,0,0,0,0,0,0,0,0,0,0,0,0,0,0,0,0,0,0,0,0,0,0,0,0,0,0,0,0,67,63,63,18,18,31,190,178,181,199,148,174,29949,29954,29960,5302,29961,29962,29968,29970,29970,29972,29972,29973,29977,29978,29978,29979,29975]} 1. Nf3 {[%emt 0:00:04]} d5 {[%emt 0:00:02]} 2. e3 {[%emt 0:00:03]} Nf6 {[%emt 0:00:02]} 3. b3 {[%emt 0:00:04]} c5 {[%emt 0:00:13]} 4. Bb2 {[%emt 0:00:14]} g6 {[%emt 0:00:02]} 5. Bb5+ {[%emt 0:00:52]} Bd7 {[%emt 0:00:02]} 6. Bxf6 {[%emt 0:00:39]} exf6 {[%emt 0:00:02]} 7. Bxd7+ {[%emt 0:00:02]} Qxd7 {[%emt 0:00:01]} 8. c3 {[%emt 0:00:18]} Nc6 {[%emt 0:00:08]} 9. d4 {[%emt 0:00:04]} cxd4 {[%emt 0:00:29]} 10. cxd4 {[%emt 0:00:03]} Bb4+ {[%emt 0:00:31]} 11. Nfd2 {[%emt 0:00:13]} Rc8 {[%emt 0:00:24]} 12. O-O {[%emt 0:00:04]} O-O {[%emt 0:00:22]} 13. a3 {[%emt 0:00:23]} Bd6 {[%emt 0:00:01]} 14. Nc3 {[%emt 0:01:24]} Ne7 {[%emt 0:00:02]} 15. Ne2 {[%emt 0:00:05]} Rc6 {[%emt 0:00:08]} 16. b4 {[%emt 0:00:02]} Rfc8 {[%emt 0:00:16]} 17. Rc1 {[%emt 0:00:48]} Rxc1 {[%emt 0:00:52]} 18. Nxc1 {[%emt 0:00:02]} Qc7 {[%emt 0:00:01]} 19. g3 {[%emt 0:00:07]} Qc2 {[%emt 0:00:11]} 20. Ncb3 {[%emt 0:00:18]} Qd3 {[%emt 0:01:12]} 21. Qb1 {[%emt 0:00:41]} Qa6 {[%emt 0:00:47]} 22. Qb2 {[%emt 0:00:32]} b6 {[%emt 0:00:02]} 23. Rc1 {[%emt 0:00:05]} Rxc1+ {[%emt 0:00:12]} 24. Nxc1 {[%emt 0:00:04][%cal Bb3c1,Bc1e2,Be2c3][%mdl 32]} h5 {[%emt 0:00:16][%cal Bh7h5,Bh5h4][%mdl 32]} 25. Qb3 {[%emt 0:00:13]} Qc8 {[%emt 0:00:27]} 26. Ne2 {[%emt 0:00:09]} h4 {[%emt 0:00:17]} 27. Nc3 {[%emt 0:00:05]} Qf5 {[%emt 0:00:50]} 28. Qb1 {[%emt 0:00:16] And now Qxf5 would win.} Qg4 {[%emt 0:00:11][%cal Rh4g3]} 29. Kg2 {[%emt 0:00:18]} hxg3 {[%emt 0:00:47]} 30. hxg3 {[%emt 0:00:02]} Kg7 {[%emt 0:00:09]} 31. Qd1 {[%emt 0:00:18]} (31. Qd3 {seems wilder.} Bb8 32. Qb5 Bd6 33. Nf1) 31... Qxd1 {[%emt 0:00:19]} 32. Nxd1 $11 {[%emt 0:00:00][%mdl 4096] Endgame KBN-KNN} f5 {[%emt 0:00:00]} 33. Nc3 {[%emt 0:00:07]} Kf6 {[%emt 0:00:11]} 34. Nf3 {[%emt 0:00:19]} g5 {[%emt 0:00:10][%cal Bg6g5,Bg5g4][%mdl 32]} 35. Kf1 {[%emt 0:00:10]} g4 {[%emt 0:00:07]} 36. Ne1 {[%emt 0:00:05]} Ke6 {[%emt 0:00:13]} 37. Nd3 {[%emt 0:00:05]} Ng8 {[%emt 0:00:06]} 38. Ke2 {[%emt 0:01:08]} Nf6 {[%emt 0:00:02]} 39. Kd2 {[%emt 0:00:01]} Ne4+ {[%emt 0:00:26]} 40. Kc2 {[%emt 0:00:01]} Nf6 {[%emt 0:00:12]} 41. a4 {[%emt 0:00:02]} Ne4 {[%emt 0:00:09]} 42. Kb3 {[%emt 0:00:14]} Nd2+ {[%emt 0:00:01]} 43. Kb2 {[%emt 0:00:01]} Ne4 {[%emt 0:00:06]} 44. Kc2 {[%emt 0:00:02]} a6 {[%emt 0:00:12]} 45. Ne2 {[%emt 0:00:05]} Kd7 {[%emt 0:00:05]} 46. Nec1 {[%emt 0:00:09]} Kc6 {[%emt 0:00:06]} 47. Nb3 {[%emt 0:00:03]} Kc7 {[%emt 0:00:04]} 48. Nbc1 {[%emt 0:00:10]} Kc6 {[%emt 0:00:01]} 49. Na2 {[%emt 0:00:06]} Kd7 {[%emt 0:00:01]} 50. Nc3 {[%emt 0:00:03]} Ke6 {[%emt 0:00:02]} 51. a5 {[%emt 0:00:04]} b5 {[%emt 0:00:07]} (51... bxa5 $11 52. bxa5 Bc7) 52. Nd1 {[%emt 0:00:02]} Kd7 {[%emt 0:00:02]} 53. Nc5+ {[%emt 0:00:02]} Bxc5 {[%emt 0:00:03]} 54. dxc5 {[%emt 0:00:01] KN-KN} Kc7 $2 {[%emt 0:00:02] [#]} (54... f6 $14) 55. Kd3 $1 $18 {[%emt 0:00:01]} Kc6 {[%emt 0:00:01]} 56. Kd4 {[%emt 0:00:03]} f6 {[%emt 0:00:01]} 57. Nc3 {[%emt 0:00:04]} Nxc3 $2 {[%emt 0:00:03]} (57... Nd2 $18 58. Ne2 (58. Nxd5 $2 {too greedy.} Nf3+ 59. Kd3 Kxd5 $19) 58... Nf3+ 59. Kc3 Ng5 60. Nd4+ Kd7) 58. Kxc3 {[%emt 0:00:01] KP-KP} Kc7 {[%emt 0:00:01]} 59. Kd3 {[%emt 0:00:02]} (59. Kc2 $142 Kb7 60. Kc3 Kc7 61. f3 gxf3 62. Kd2 Kd8 63. Ke1 Ke7 64. Kf2) 59... Kd7 {[%emt 0:00:01]} 60. Ke2 {[%emt 0:00:01]} Kc7 {[%emt 0:00:02]} 61. f3 {[%emt 0:00:01]} Kd7 {[%emt 0:00:03]} 62. fxg4 {[%emt 0:00:01]} fxg4 {[%emt 0:00:01]} 63. Kd3 {[%emt 0:00:01]} f5 {[%emt 0:00:05]} 64. Kd4 {[%emt 0:00:01]} Ke6 {[%emt 0:00:01]} 65. c6 {[%emt 0:00:01]} Kd6 {[%emt 0:00:04]} 1-0

[Event "CCT Final-RR 2024"]
[Site "Oslo"]
[Date "2024.12.17"]
[Round "1"]
[White "Firouzja, Alireza"]
[Black "Aronian, Levon"]
[Result "1-0"]
[ECO "B90"]
[WhiteElo "2763"]
[BlackElo "2747"]
[Annotator "TA"]
[PlyCount "81"]
[EventDate "2024.12.11"]
[EventType "tourn"]
[EventCountry "NOR"]
[SourceTitle "playchess.com"]
[Source "ChessBase"]
[SourceQuality "1"]
[TimeControl "600+2"]

{[%evp 14,81,0,0,1,11,10,16,0,0,0,0,2,-15,0,0,0,0,0,0,0,0,0,0,0,0,33,0,18,9,5,0,8,0,0,0,0,0,89,86,188,192,210,210,277,166,163,184,152,141,137,137,204,193,216,218,297,277,306,86,229,208,910,910,847,822,837,835,756,711]} 1. e4 {[%emt 0:00:01]} c5 {[%emt 0:00:01]} 2. Nf3 {[%emt 0:00:02][%cal Bg1f3,Bf3d4,Bd4e2,Be2f4][%mdl 32]} d6 {[%emt 0:00:01]} 3. d4 {[%emt 0:00:05]} cxd4 {[%emt 0:00:01]} 4. Nxd4 {[%emt 0:00:02]} Nf6 {[%emt 0:00:01]} 5. Nc3 {[%emt 0:00:01]} a6 {[%emt 0:00:01]} 6. Bd3 {[%emt 0:00:47]} e5 {[%emt 0:00:03]} 7. Nde2 {[%emt 0:00:02]} Be7 {[%emt 0:00:09]} 8. O-O {[%emt 0:00:03]} Be6 {[%emt 0:00:03]} 9. f4 {[%emt 0:00:16]} exf4 {[%emt 0:00:02]} 10. Nxf4 {[%emt 0:00:01]} Nc6 {[%emt 0:00:03]} 11. Be3 {[%emt 0:00:26]} Ne5 {[%emt 0:00:14]} 12. a4 {[%emt 0:00:21]} O-O {[%emt 0:00:02]} 13. Qe1 {[%emt 0:00:08]} Rc8 {[%emt 0:00:33]} (13... d5 {simplifies} 14. Nxe6 fxe6 15. exd5 Nxd3 16. cxd3 Nxd5 17. Rxf8+ Bxf8 18. Rd1 Qd7) 14. a5 {[%emt 0:00:05]} Nfd7 {[%emt 0:00:38]} 15. Ncd5 {[%emt 0:00:53]} Bg5 {[%emt 0:00:03]} 16. Bd4 {[%emt 0:00:13]} Nc5 {[%emt 0:00:43]} 17. Qg3 {[%emt 0:00:16]} Bh4 {[%emt 0:00:19]} 18. Qe3 $1 {[%emt 0:00:01]} Bg5 {[%emt 0:00:08]} 19. Qe2 {[%emt 0:01:00]} Bh6 {[%emt 0:02:01]} 20. b4 {[%emt 0:00:10]} (20. Nxe6 {looks sharper.} fxe6 21. Rxf8+ Qxf8 22. Rf1) 20... Ncd7 {[%emt 0:00:49]} 21. h3 {[%emt 0:00:09]} Re8 {[%emt 0:00:36]} 22. Rf2 {[%emt 0:00:26]} Nc6 {[%emt 0:00:26]} 23. Bb2 {[%emt 0:00:11]} Bxf4 {[%emt 0:00:37]} 24. Nxf4 {[%emt 0:00:12]} Nxb4 {[%emt 0:00:13]} 25. Nxe6 {[%emt 0:00:59]} Rxe6 {[%emt 0:00:03]} (25... fxe6 $11 26. Bc4 Re7) 26. Bc4 $16 {[%emt 0:00:15]} d5 {[%emt 0:00:55] [#]} 27. Qf3 $1 $18 {[%emt 0:00:08]} Nf6 {[%emt 0:00:46]} (27... Ne5 28. Bxe5) 28. exd5 $40 {[%emt 0:00:10][%mdl 128] Black is in trouble.} Rd6 {[%emt 0:00:18]} 29. Bb3 {[%emt 0:00:50]} (29. Qg3 $142) 29... Nbxd5 {[%emt 0:00:04]} 30. Rd1 {[%emt 0:00:14]} Ne7 {[%emt 0:00:34]} 31. Rxd6 {[%emt 0:00:07]} Qxd6 {[%emt 0:00:01]} 32. Qxb7 {[%emt 0:00:20]} Rb8 {[%emt 0:00:19]} (32... h6 $16 33. Rf1 Rb8) 33. Qa7 {[%emt 0:01:07]} Re8 {[%emt 0:00:11]} 34. Rf1 {[%emt 0:00:28]} Rf8 {[%emt 0:00:06]} 35. Qb6 {[%emt 0:00:13]} Nc6 {[%emt 0:00:02]} 36. Qe3 $2 {[%emt 0:00:18] Against Ne4} (36. Qxa6 $18 {Hoping for Qb5.} Nh5 37. Qb6) 36... Nxa5 {[%emt 0:00:03]} (36... Re8 $16 37. Qb6 Re7 38. Qxa6 Qc5+ 39. Kh1 Nxa5) 37. Ba3 $1 {[%emt 0:00:01] This pair of bishops is nice.} Re8 $2 {[%emt 0:00:04]} (37... Qxa3 $2 {too greedy.} 38. Bxf7+ Rxf7 39. Qxa3 $18) (37... Qc7) 38. Qxe8+ {[%emt 0:00:07]} ({Weaker is} 38. Bxd6 Rxe3 39. Ba2 Re8 $11) 38... Nxe8 {[%emt 0:00:01]} 39. Bxf7+ {[%emt 0:00:02]} Kh8 {[%emt 0:00:00]} 40. Bxd6 {[%emt 0:00:01]} Nxd6 {[%emt 0:00:01]} 41. Bd5 {[%emt 0:00:04]} 1-0

[Event "CCT Final-RR 2024"]
[Site "Oslo"]
[Date "2024.12.17"]
[Round "1"]
[White "Nepomniachtchi, Ian"]
[Black "So, Wesley"]
[Result "1-0"]
[ECO "C55"]
[WhiteElo "2755"]
[BlackElo "2747"]
[Annotator "TA"]
[PlyCount "144"]
[EventDate "2024.12.11"]
[EventType "tourn"]
[EventCountry "NOR"]
[SourceTitle "playchess.com"]
[Source "ChessBase"]
[SourceQuality "1"]
[TimeControl "600+2"]

{[%evp 94,144,-60,-71,-62,-26,-57,-509,-469,-777,-636,-442,0,0,0,-441,0,0,0,0,0,0,0,0,0,0,0,0,0,0,53,0,0,0,0,0,91,90,92,92,677,679,688,681,756,620,525,481,897,45,29996,29997,29997]} 1. e4 {[%emt 0:00:03]} e5 {[%emt 0:00:02]} 2. Nf3 {[%emt 0:00:03]} Nc6 {[%emt 0:00:01]} 3. Bc4 {[%emt 0:00:02]} Nf6 {[%emt 0:00:02]} 4. d3 {[%emt 0:00:03]} Be7 {[%emt 0:00:01]} 5. O-O {[%emt 0:00:25]} O-O {[%emt 0:00:02]} 6. Nbd2 {[%emt 0:00:18]} d5 {[%emt 0:00:12]} 7. exd5 {[%emt 0:00:04]} Nxd5 {[%emt 0:00:02]} 8. Re1 {[%emt 0:00:23]} f6 {[%emt 0:00:15]} 9. a4 {[%emt 0:00:34]} Kh8 {[%emt 0:00:29]} 10. h3 {[%emt 0:00:06]} Bf5 {[%emt 0:01:19]} 11. Nh4 {[%emt 0:00:04]} Be6 {[%emt 0:00:11]} 12. Nf1 {[%emt 0:00:16]} Qd7 {[%emt 0:01:03]} 13. Ng3 {[%emt 0:00:06]} Rad8 {[%emt 0:00:06]} 14. Bd2 {[%emt 0:00:23]} a6 {[%emt 0:00:16]} 15. a5 {[%emt 0:00:37]} g6 {[%emt 0:00:24]} 16. Nf3 {[%emt 0:00:09]} Rfe8 {[%emt 0:00:23]} 17. Ne4 {[%emt 0:00:05]} Bg8 {[%emt 0:00:22]} 18. Qc1 {[%emt 0:00:16]} Ndb4 {[%emt 0:00:27]} 19. Bxg8 {[%emt 0:00:38]} Kxg8 {[%emt 0:00:02]} 20. Be3 {[%emt 0:00:23]} f5 {[%emt 0:00:30]} 21. Nc5 {[%emt 0:00:10]} Qd5 {[%emt 0:00:17]} 22. Na4 {[%emt 0:00:05]} Bf6 {[%emt 0:00:32]} 23. Nc3 {[%emt 0:00:04]} Qd6 {[%emt 0:00:04]} 24. Ra4 {[%emt 0:00:07]} Nd4 {[%emt 0:00:15]} 25. Bxd4 {[%emt 0:00:19]} exd4 {[%emt 0:00:01]} 26. Ne2 {[%emt 0:01:02]} c5 {[%emt 0:00:31]} 27. Qd2 {[%emt 0:00:03]} Re7 {[%emt 0:00:16]} 28. Raa1 {[%emt 0:00:01]} Rde8 {[%emt 0:00:01]} 29. Rad1 {[%emt 0:00:48]} Nc6 {[%emt 0:00:22]} 30. Ng3 {[%emt 0:00:41]} Qc7 {[%emt 0:00:18]} 31. Rxe7 {[%emt 0:00:03]} Rxe7 {[%emt 0:00:07]} 32. Ra1 {[%emt 0:00:02]} Kg7 {[%emt 0:00:04]} 33. Ne2 {[%emt 0:00:03]} Re8 {[%emt 0:00:17]} 34. Nf4 {[%emt 0:00:04]} Qd6 {[%emt 0:00:01]} 35. g3 {[%emt 0:00:11]} Bd8 {[%emt 0:00:05]} 36. h4 {[%emt 0:00:02]} h6 {[%emt 0:00:05]} 37. Kg2 {[%emt 0:00:04]} g5 {[%emt 0:00:05]} 38. hxg5 {[%emt 0:00:03]} hxg5 {[%emt 0:00:01]} 39. Ne2 {[%emt 0:00:10]} g4 {[%emt 0:00:13]} 40. Nh2 {[%emt 0:00:12]} Rh8 {[%emt 0:00:13]} 41. Nf4 {[%emt 0:00:10]} Ne5 {[%emt 0:00:02]} 42. Qe2 {[%emt 0:00:08]} Bc7 {[%emt 0:00:23]} 43. Rh1 {[%emt 0:00:06]} Qc6+ {[%emt 0:00:05]} 44. Kg1 {[%emt 0:00:03]} Kf7 {[%emt 0:00:03]} 45. Qf1 {[%emt 0:00:26]} Rxh2 {[%emt 0:00:15]} 46. Rxh2 {[%emt 0:00:03]} Nf3+ {[%emt 0:00:01]} 47. Kh1 {[%emt 0:00:03]} Bxf4 {[%emt 0:00:11]} (47... Nxh2+ $17 48. Kxh2) 48. gxf4 $15 {[%emt 0:00:07]} Nxh2+ {[%emt 0:00:01]} 49. Kxh2 {[%emt 0:00:00]} Qf3 {[%emt 0:00:01]} 50. Qg2 $2 {[%emt 0:00:12][%mdl 8192]} (50. Qe1 $15) 50... Qxf4+ $19 {[%emt 0:00:02]} 51. Kg1 {[%emt 0:00:00]} Qc1+ {[%emt 0:00:05]} 52. Kh2 {[%emt 0:00:01]} Qh6+ $2 {[%emt 0:00:07]} (52... Qxc2 53. Qxb7+ Kg6 54. Qxa6+ Kg5 55. Kg2 $11) (52... Qxb2 53. Qd5+ Kg6 54. Qg8+ Kf6 55. Qd8+ Kg6 56. Qd6+ Kg5 57. Kg3 $11) (52... Kg6 $19 53. Qxb7 Qf1 (53... Qxc2 54. Qxa6+ Kg5 55. Kg2 $11)) 53. Kg1 $1 $11 {[%emt 0:00:00]} Qc1+ $2 {[%emt 0:00:03][%mdl 8192]} (53... Qc6 $11 54. Qh2 Kg6) 54. Kh2 $19 {[%emt 0:00:01]} Qf4+ $2 {[%emt 0:00:12]} (54... Qxc2 55. Qxb7+ Kf6 56. Qxa6+ Kg5 57. Kg2 $11) (54... Qxb2 55. Qd5+ Kf6 56. Qd6+ Kg5 57. Kg3 $11) (54... Kg6 $19 55. Qxb7 Qf1 (55... Qxc2 56. Qxa6+ Kg5 57. Kg2 $11)) 55. Kg1 $1 $11 {[%emt 0:00:00]} Qc7 {[%emt 0:00:07]} (55... Qc1+ 56. Kh2 $17) 56. Qh1 {[%emt 0:00:03]} Kg6 {[%emt 0:00:03]} (56... Qxa5 57. Qxb7+ Kf6 58. Kg2) 57. Qh8 {[%emt 0:00:01]} Qf7 {[%emt 0:00:06]} 58. Qe5 {[%emt 0:00:04]} Qf8 {[%emt 0:00:05]} 59. Qc7 {[%emt 0:00:02]} Qe8 {[%emt 0:00:07]} 60. Qxb7 {[%emt 0:00:11]} Qe1+ {[%emt 0:00:02]} 61. Kg2 {[%emt 0:00:01]} f4 {[%emt 0:00:01]} ({Black should play} 61... Qxa5 $11 62. b3 Qc3) 62. Qd5 {[%emt 0:00:21]} (62. Qxa6+ Kg5 63. Qc6 f3+ (63... Qxa5 64. Qc8 $16)) ({Better is} 62. Qd7 $1 $14 g3 (62... Qxa5 $2 63. Qxg4+ Kf6 64. Qxf4+ Ke6 65. Qg4+ Kd6 66. Qg6+ Kc7 67. Qf7+ Kd6 68. Qf8+ Kc6 69. Qc8+ Kd6 70. Qb8+ Kc6 71. Qe8+ Kd6 72. Qg6+ Kc7 73. Qf5 $18) (62... f3+ 63. Kg3 $16) 63. Qg4+ Kh7 64. Qxf4 (64. fxg3 Qd2+ 65. Kh3 fxg3 $16) 64... gxf2 65. Qxf2) 62... f3+ $11 {[%emt 0:00:02]} (62... Qxa5 63. Qe6+ Kg5 64. Qe5+ Kh4 65. Qf6+ (65. Qxf4 Qb6 $16) 65... Kh5 66. Qf5+ (66. Qxf4 Qd8 $16) 66... Kh4 67. Qxf4 $16) 63. Kg3 {[%emt 0:00:01]} Qg1+ {[%emt 0:00:01]} (63... Qxa5 $2 64. Qe6+ (64. Kxg4 Qe1 $18) 64... Kg7 65. Qxg4+ (65. Kxg4 Qa1 $18) 65... Kf6 66. Qxf3+ (66. Kxf3 Qa4 $18) 66... Ke7 67. Qc6 $18) 64. Kf4 {[%emt 0:00:00]} Qxf2 {[%emt 0:00:01]} (64... Qc1+ $11 {keeps the balance.} 65. Ke4 (65. Kxg4 Qg1+ 66. Kf4 Qh2+ 67. Kg4 Qg1+ 68. Kf4 Qh2+ 69. Kg4 Qg2+ 70. Kf4 Qh2+ $11) 65... Qe1+ (65... Qxc2 $2 66. Qf5+ Kg7 67. Qxg4+ Kh7 68. Qxf3 $16) 66. Kf4 Qc1+ (66... Qxf2 67. Qf5+ Kg7 68. Qxg4+ Kf6 69. Qf5+ Kg7 70. Qg5+ Kf7 71. Qd5+ Kg7 72. Qb7+ Kf6 73. Qxa6+ Ke7 74. Qb7+ Kd6 75. Qxf3 $16)) 65. Qf5+ $16 {[%emt 0:00:09]} Kg7 {[%emt 0:00:01]} 66. Qxg4+ {[%emt 0:00:01]} ({Much weaker is} 66. Kxg4 $6 Qg2+ (66... Qxc2 67. Kxf3 Qd2 68. Qd7+ Kf6 69. Qd6+ Kf7 70. Qxa6 $11) 67. Kh4 Qh2+ (67... Qxc2 68. Qd7+ Kf8 69. Qd8+ Kf7 70. Qd7+ Kf8 71. Kg5 $11) 68. Kg4 Qg2+ (68... Qxc2 69. Kxf3 Qd1+ 70. Ke4 $11) 69. Kh4 Qh2+ 70. Kg4 Qg2+ $11) 66... Kf7 $2 {[%emt 0:00:05][%mdl 8192]} (66... Kf6 $16) 67. Qxf3 $18 {[%emt 0:00:03]} Qxc2 {[%emt 0:00:01]} 68. Ke5+ {[%emt 0:00:00]} Kg7 {[%emt 0:00:04]} 69. Qf6+ {[%emt 0:00:02]} Kh7 {[%emt 0:00:01]} 70. Qxa6 {[%emt 0:00:02]} Qxb2 {[%emt 0:00:03]} (70... c4 $142 71. Qxc4 (71. Kxd4 Qxd3+ 72. Kc5 Qe3+ 73. Kb5 Qe5+ 74. Ka4 Qxb2 $16) (71. Qb7+ Kh6 $18) 71... Qxc4 72. dxc4 d3) 71. Qc4 $2 {[%emt 0:00:13]} ({Weaker is} 71. Qa7+ Kg8 $18) (71. Kd5 $18 Qg2+ 72. Kxc5) 71... Qc3 $2 {[%emt 0:00:02][%mdl 8192]} (71... Qb8+ $14 72. Kd5 Qd8+ 73. Kxc5 Qxa5+ 74. Kxd4 Qa7+ 75. Ke5 Qb8+ 76. Ke4 Qe8+ 77. Kd4 Qh8+ 78. Ke3 Qd8) 72. Qf7+ {[%emt 0:00:08]} Kh6 {[%emt 0:00:01]} 1-0

[Event "CCT Final-RR 2024"]
[Site "Oslo"]
[Date "2024.12.17"]
[Round "1"]
[White "Aronian, Levon"]
[Black "Firouzja, Alireza"]
[Result "1/2-1/2"]
[ECO "C65"]
[WhiteElo "2747"]
[BlackElo "2763"]
[Annotator "TA"]
[PlyCount "108"]
[EventDate "2024.12.11"]
[EventType "tourn"]
[EventCountry "NOR"]
[SourceTitle "playchess.com"]
[Source "ChessBase"]
[SourceQuality "1"]
[TimeControl "600+2"]

{[%evp 9,108,19,24,14,22,0,13,0,6,4,18,-16,-12,-34,-20,-40,8,-13,-17,-59,-52,-58,-62,-58,-66,-64,-45,-62,-42,-58,-15,-6,0,0,0,-9,0,0,12,9,0,0,3,0,0,0,0,0,0,0,0,0,0,0,0,0,0,0,7,0,8,0,0,0,0,-6,0,0,0,0,0,-8,-8,-8,0,0,0,0,0,0,32,32,32,32,32,32,32,32,32,32,32,0,0,0,0,0,0,0,0,0,0]} 1. e4 {[%emt 0:00:02]} e5 {[%emt 0:00:01]} 2. Nf3 {[%emt 0:00:01]} Nc6 {[%emt 0:00:03]} 3. Bb5 {[%emt 0:00:03]} Nf6 {[%emt 0:00:02]} 4. d3 {[%emt 0:00:02]} Bc5 {[%emt 0:00:03]} 5. Bxc6 {[%emt 0:00:02]} dxc6 {[%emt 0:00:01]} 6. c3 {[%emt 0:00:15]} (6. Nxe5 $2 {perishes.} Qd4 7. Qe2 Qxe5 $19) 6... Bd6 {[%emt 0:00:27]} 7. h3 {[%emt 0:00:32]} h6 {[%emt 0:00:12]} 8. Be3 {[%emt 0:00:02]} Be6 {[%emt 0:00:06]} 9. Nbd2 {[%emt 0:00:02]} Qe7 {[%emt 0:00:53]} 10. Nf1 {[%emt 0:00:37]} O-O-O {[%emt 0:00:29]} 11. Ng3 {[%emt 0:00:10][%cal Oe1g1]} Kb8 {[%emt 0:00:09]} 12. Qc2 {[%emt 0:00:48]} c5 {[%emt 0:00:53]} (12... Nd7 $15 {deserves consideration.}) 13. Nd2 {[%emt 0:00:37]} g6 {[%emt 0:00:17]} 14. b3 {[%emt 0:01:08]} Nd7 {[%emt 0:00:12] [#] Threatens to win with ...f5.} 15. Ne2 {[%emt 0:00:12]} f5 {[%emt 0:00:30] ...f4 is the strong threat.} 16. f3 {[%emt 0:00:02]} f4 {[%emt 0:00:20]} 17. Bf2 {[%emt 0:00:01]} g5 {[%emt 0:00:01]} 18. O-O-O {[%emt 0:01:07]} h5 {[%emt 0:00:03]} 19. d4 {[%emt 0:00:16]} cxd4 {[%emt 0:00:16]} 20. cxd4 {[%emt 0:00:01]} exd4 {[%emt 0:00:02]} 21. Nxd4 {[%emt 0:00:04]} Ne5 {[%emt 0:00:20]} 22. Kb1 {[%emt 0:00:51]} Bc8 {[%emt 0:00:44]} 23. Nf5 {[%emt 0:00:54]} Qe6 {[%emt 0:01:16]} 24. Bd4 {[%emt 0:00:32]} b6 {[%emt 0:00:14]} 25. Nc4 {[%emt 0:01:00]} Nxc4 $1 {[%emt 0:00:13]} 26. Qxc4 {[%emt 0:00:13]} Qxc4 {[%emt 0:00:04]} 27. bxc4 {[%emt 0:00:00]} Rhf8 {[%emt 0:00:08]} 28. Nxd6 {[%emt 0:00:25]} Rxd6 {[%emt 0:00:02]} 29. c5 {[%emt 0:00:10]} Rc6 {[%emt 0:00:12]} 30. cxb6 {[%emt 0:00:16]} axb6 {[%emt 0:00:01]} 31. Rc1 {[%emt 0:00:02]} Rxc1+ {[%emt 0:00:08]} 32. Rxc1 $11 {[%emt 0:00:02][%mdl 4096] Endgame. KRB-KRB} Kb7 {[%emt 0:00:02]} 33. Be5 {[%emt 0:00:05]} Rf7 {[%emt 0:00:08]} 34. Kb2 {[%emt 0:00:03]} Be6 {[%emt 0:00:08]} 35. a3 {[%emt 0:00:04]} Rd7 {[%emt 0:00:58]} 36. Kc3 {[%emt 0:00:01]} c5 {[%emt 0:00:07]} 37. Rc2 {[%emt 0:00:03]} Kc6 {[%emt 0:00:51]} 38. Rd2 {[%emt 0:00:06]} b5 {[%emt 0:00:25]} 39. Rxd7 {[%emt 0:00:17]} Kxd7 {[%emt 0:00:02] KB-KB} 40. Kd2 {[%emt 0:00:09]} Bc4 {[%emt 0:00:04]} 41. Ke1 {[%emt 0:00:01]} Ke6 {[%emt 0:00:03]} 42. Bc3 {[%emt 0:00:02]} h4 {[%emt 0:00:06]} 43. Ba5 {[%emt 0:00:02]} Kf7 {[%emt 0:00:05]} 44. Kf2 {[%emt 0:00:05]} b4 {[%emt 0:00:02]} 45. axb4 {[%emt 0:00:01]} cxb4 {[%emt 0:00:01]} 46. Bxb4 {[%emt 0:00:00]} Kg6 {[%emt 0:00:01]} 47. Be7 {[%emt 0:00:03]} Bb5 {[%emt 0:00:02]} 48. Ke1 {[%emt 0:00:01]} Bc4 {[%emt 0:00:01]} 49. Bd8 {[%emt 0:00:04]} Bb5 {[%emt 0:00:01]} 50. e5 {[%emt 0:00:03]} Bc4 {[%emt 0:00:02] The position is equal.} 51. Kf2 {[%emt 0:00:01]} Kf5 {[%emt 0:00:01]} 52. Bf6 {[%emt 0:00:01]} Bd5 {[%emt 0:00:02]} 53. Be7 {[%emt 0:00:02]} Bc4 {[%emt 0:00:02]} 54. Ke1 {[%emt 0:00:02]} Bd5 {[%emt 0:00:05] Weighted Error Value: White=0.06 (flawless) /Black=0.06 (flawless) .  Mistake:       	---       	Black=1      Inaccurate:     	White=3     	Black=2      OK:         	White=16    	Black=22     Strong:       	---       	Black=1} 1/2-1/2

[Event "CCT Final-RR 2024"]
[Site "Oslo"]
[Date "2024.12.17"]
[Round "1"]
[White "So, Wesley"]
[Black "Nepomniachtchi, Ian"]
[Result "1/2-1/2"]
[ECO "A20"]
[WhiteElo "2747"]
[BlackElo "2755"]
[Annotator "TA"]
[PlyCount "91"]
[EventDate "2024.12.11"]
[EventType "tourn"]
[EventCountry "NOR"]
[SourceTitle "playchess.com"]
[Source "ChessBase"]
[SourceQuality "1"]
[TimeControl "600+2"]

{[%evp 16,91,0,0,1,0,0,-7,0,0,-3,-6,0,0,0,0,0,0,0,-11,-14,-37,-16,-10,-5,-16,0,-16,-6,-20,-33,-20,0,0,0,0,0,0,17,29,12,0,29,29,23,19,62,27,73,75,150,77,116,64,84,96,98,8,22,0,0,0,0,0,0,0,0,0,0,0,0,-8,0,-8,0,-8,0,-8]} 1. c4 {[%emt 0:00:02]} e5 {[%emt 0:00:09]} 2. g3 {[%emt 0:00:03]} c6 {[%emt 0:00:09]} 3. d4 {[%emt 0:00:08]} Bb4+ {[%emt 0:00:02]} 4. Bd2 {[%emt 0:00:03]} Bxd2+ {[%emt 0:00:02]} 5. Qxd2 {[%emt 0:00:01]} d6 {[%emt 0:00:01]} 6. Nc3 {[%emt 0:00:05]} Nf6 {[%emt 0:00:02]} 7. e4 {[%emt 0:01:23]} O-O {[%emt 0:00:09]} 8. Bg2 {[%emt 0:00:37]} b5 {[%emt 0:00:27]} 9. cxb5 {[%emt 0:00:25]} cxb5 {[%emt 0:00:02]} 10. Nge2 {[%emt 0:00:43]} b4 {[%emt 0:00:36]} 11. Nd5 {[%emt 0:00:02]} Nxd5 {[%emt 0:00:07]} 12. exd5 {[%emt 0:00:02]} exd4 {[%emt 0:00:06]} 13. O-O {[%emt 0:00:47]} (13. Qxb4 Re8 14. Qxd4 Ba6 $19) (13. Qxd4 Re8 14. Be4 Ba6 $17) 13... Ba6 {[%emt 0:00:01]} 14. Rfe1 {[%emt 0:00:14]} Bxe2 {[%emt 0:00:18]} 15. Rxe2 {[%emt 0:00:01]} a5 {[%emt 0:00:19]} 16. Qxd4 {[%emt 0:00:07]} Nd7 {[%emt 0:00:00]} 17. Rae1 {[%emt 0:00:23]} Rc8 {[%emt 0:00:17]} 18. h4 {[%emt 0:00:33]} h6 {[%emt 0:00:13]} 19. Bh3 {[%emt 0:00:15]} Ne5 {[%emt 0:00:05]} 20. Kg2 {[%emt 0:00:04]} Rc4 {[%emt 0:00:02]} 21. Qd2 {[%emt 0:00:04]} Rc5 {[%emt 0:00:44]} 22. b3 {[%emt 0:00:10]} Qa8 {[%emt 0:00:09]} 23. Rd1 {[%emt 0:00:04]} Rc3 {[%emt 0:00:34]} 24. Re3 {[%emt 0:00:13]} Rxe3 {[%emt 0:00:12]} 25. Qxe3 {[%emt 0:00:00]} Re8 {[%emt 0:00:02]} 26. Qb6 {[%emt 0:00:15]} Qd8 {[%emt 0:00:01]} 27. Qxd8 {[%emt 0:00:14]} Rxd8 {[%emt 0:00:01]} 28. f4 {[%emt 0:00:03]} Nd7 {[%emt 0:00:02]} 29. Bxd7 {[%emt 0:00:02]} Rxd7 {[%emt 0:00:01]} 30. Rc1 {[%emt 0:00:01]} Ra7 {[%emt 0:00:47]} 31. Rc8+ {[%emt 0:00:20]} Kh7 {[%emt 0:00:01]} 32. Kf3 {[%emt 0:00:01]} f5 {[%emt 0:00:38] [#]} ({Black should play} 32... a4) 33. h5 {[%emt 0:00:23]} (33. Ke3 $142 $1) 33... a4 $16 {[%emt 0:00:00]} 34. Rc4 {[%emt 0:00:17]} axb3 {[%emt 0:00:02]} 35. axb3 {[%emt 0:00:00]} Ra5 {[%emt 0:00:00]} 36. Rd4 {[%emt 0:00:06]} (36. Rxb4 $16 {Rb7 would now be deadly.} Rxd5 37. Ke2) 36... g6 $11 {[%emt 0:00:54]} 37. Rxb4 {[%emt 0:00:04]} gxh5 {[%emt 0:00:01]} 38. Rd4 {[%emt 0:00:38]} Kg6 {[%emt 0:00:04]} 39. Rd3 {[%emt 0:00:07]} Rb5 {[%emt 0:00:07]} 40. Ke3 {[%emt 0:00:44]} h4 {[%emt 0:00:03]} 41. gxh4 {[%emt 0:00:02]} Kh5 {[%emt 0:00:01]} 42. Kd4 {[%emt 0:00:00]} Kxh4 {[%emt 0:00:03]} 43. Kc4 {[%emt 0:00:05]} Rc5+ {[%emt 0:00:01]} 44. Kd4 {[%emt 0:00:01]} Rb5 {[%emt 0:00:00]} 45. Kc4 {[%emt 0:00:45]} Rc5+ {[%emt 0:00:01]} 46. Kd4 {[%emt 0:00:01]} 1/2-1/2